[Event "15th Paleochora Open 2022"]
[Site "Paleochora"]
[Date "2022.07.19"]
[Round "4.14"]
[White "Banikas, Hristos"]
[Black "Simonetto, Andrea"]
[Result "1/2-1/2"]
[ECO "D27"]
[WhiteElo "2598"]
[BlackElo "2273"]
[Annotator "TA"]
[PlyCount "84"]
[EventDate "2022.07.17"]
[EventType "swiss"]
[EventCountry "GRE"]
[SourceTitle "playchess.com"]
[Source "ChessBase"]
[SourceQuality "1"]
[TimeControl "40/5400+30:900+30"]

{[%evp 20,84,4,11,8,11,16,11,12,0,0,0,40,0,0,0,0,-5,-10,-16,-12,-19,-22,-17,0,0,0,-2,0,-12,0,0,0,-3,0,0,0,0,0,-12,-7,-11,0,0,0,-1,0,0,7,7,7,0,0,0,0,0,0,0,0,0,0,0,7,0,0,0,0]} 1. d4 {[%emt 0:01:08]} d5 {[%emt 0:00:06]} 2. c4 {[%emt 0:00:04]} dxc4 {[%emt 0:00:06]} 3. Nf3 {[%emt 0:00:32]} Nf6 {[%emt 0:00:07]} 4. e3 {[%emt 0:00:24]} e6 {[%emt 0:00:10]} 5. Bxc4 {[%emt 0:00:06]} a6 {[%emt 0:00:04]} 6. O-O {[%emt 0:02:13]} c5 {[%emt 0:00:13]} 7. Bd3 {[%emt 0:00:28]} cxd4 {[%emt 0:07:09]} 8. exd4 {[%emt 0:00:04]} Be7 {[%emt 0:00:18]} 9. Nc3 {[%emt 0:02:18]} O-O {[%emt 0:00:58]} 10. Bg5 {[%emt 0:07:05]} Nc6 {[%emt 0:06:41]} 11. Rc1 {[%emt 0:05:11]} b6 {[%emt 0:07:34] D27: Queen's Gambit Accepted: Classical main line: 7 e4!? and 7 a4.} 12. Bxf6 {[%emt 0:15:39]} Bxf6 {[%emt 0:00:20]} 13. Be4 {[%emt 0:00:09]} Bb7 {[%emt 0:06:44]} 14. d5 {[%emt 0:00:03]} exd5 {[%emt 0:09:39]} 15. Nxd5 {[%emt 0:01:32]} Rc8 {[%emt 0:08:15] [#]} 16. Nxf6+ $146 {[%emt 0:01:40]} ({Predecessor:} 16. Qb3 b5 17. Rfd1 Na5 18. Rxc8 Bxc8 19. Qc2 g6 20. Qc5 Re8 21. b4 Nc4 22. Ne3 Qb6 23. Nd5 Qd8 24. Qc6 Kg7 25. Ne3 Qe7 26. Nd5 {½-½ (27) Carlsen,M (2127)-Hole,O (2248) Gausdal 2002}) 16... Qxf6 {[%emt 0:02:26] The position is equal.} 17. Qd7 {[%emt 0:00:09]} Ba8 {[%emt 0:03:35]} 18. Rc3 {[%emt 0:08:02]} Rcd8 {[%emt 0:07:09]} 19. Qh3 {[%emt 0:14:58][%csl Ge4][%cal Rh3h7] [#]} h6 {[%emt 0:03:28]} 20. Qf5 {[%emt 0:00:04]} Qxf5 {[%emt 0:00:42]} 21. Bxf5 {[%emt 0:00:04]} Nd4 {[%emt 0:02:02]} 22. Nxd4 {[%emt 0:01:30]} Rxd4 {[%emt 0:00:07]} 23. Re1 {[%emt 0:00:16]} g6 {[%emt 0:03:58]} 24. Bd3 {[%emt 0:01:19]} a5 {[%emt 0:01:21]} 25. f3 {[%emt 0:02:35]} Rfd8 {[%emt 0:03:04]} 26. Re3 {[%emt 0:00:05]} Bd5 {[%emt 0:01:57]} 27. a3 {[%emt 0:00:13]} Kg7 {[%emt 0:00:44]} 28. Kf2 {[%emt 0:02:03]} Be6 {[%emt 0:01:32]} 29. Ke1 {[%emt 0:04:21]} Kf6 {[%emt 0:01:09]} 30. Bc2 {[%emt 0:00:19]} R8d6 {[%emt 0:01:13]} 31. Red3 {[%emt 0:00:44]} Rxd3 {[%emt 0:00:34]} 32. Bxd3 $11 {[%emt 0:00:05][%mdl 4096] Endgame KRB-KRB} Bd5 {[%emt 0:03:51]} 33. Kf2 {[%emt 0:00:22]} Rc6 {[%emt 0:00:39]} 34. Rxc6+ {[%emt 0:00:10]} Bxc6 {[%emt 0:00:02] KB-KB} 35. f4 {[%emt 0:00:09]} Ke6 {[%emt 0:03:26]} 36. g3 {[%emt 0:00:19]} Kd5 {[%emt 0:00:46]} 37. Ke3 {[%emt 0:00:12]} Be8 {[%emt 0:00:28]} 38. Bb1 {[%emt 0:02:30]} f6 {[%emt 0:00:36]} 39. h4 {[%emt 0:01:58]} g5 {[%emt 0:00:52]} 40. Ba2+ {[%emt 0:00:00]} Kd6 {[%emt 0:00:00]} 41. fxg5 {[%emt 0:01:27]} fxg5 {[%emt 0:00:17]} 42. hxg5 {[%emt 0:00:51]} hxg5 {[%emt 0:00:01] An interesting draw.  Weighted Error Value: White=0.04 (flawless) /Black=0.05 (flawless)} 1/2-1/2

[Event "15th Paleochora Open 2022"]
[Site "Paleochora"]
[Date "2022.07.19"]
[Round "4.15"]
[White "Ali Marandi, Cemil Can"]
[Black "Baillon, Olivier"]
[Result "1-0"]
[ECO "D41"]
[WhiteElo "2561"]
[BlackElo "2219"]
[Annotator "TA"]
[PlyCount "65"]
[EventDate "2022.07.17"]
[EventType "swiss"]
[EventCountry "GRE"]
[SourceTitle "playchess.com"]
[Source "ChessBase"]
[SourceQuality "1"]
[TimeControl "40/5400+30:900+30"]

{[%evp 16,65,39,35,28,28,96,106,108,84,136,139,136,178,179,125,204,182,237,232,240,186,183,184,167,160,157,163,171,138,291,170,208,176,200,195,217,224,377,220,350,346,331,201,204,78,866,852,29997,29998,29998,29999]} 1. d4 {[%emt 0:00:03]} d5 {[%emt 0:01:07]} 2. c4 {[%emt 0:00:08]} e6 {[%emt 0:00:16]} 3. Nf3 {[%emt 0:00:05]} Nf6 {[%emt 0:01:30]} 4. Nc3 {[%emt 0:00:09]} c5 {[%emt 0:01:44]} 5. cxd5 {[%emt 0:00:36]} Nxd5 {[%emt 0:00:26]} 6. e4 {[%emt 0:01:35]} Nxc3 {[%emt 0:00:11]} 7. bxc3 {[%emt 0:00:02]} Be7 {[%emt 0:02:08]} 8. Bd3 {[%emt 0:01:56]} O-O {[%emt 0:03:29]} 9. O-O {[%emt 0:01:02][%cal Od4d5]} cxd4 {[%emt 0:01:16] The main line 9...cxd4 scores better than 9...b6. D41: Queen's Gambit Declined: Semi-Tarrasch with 5 cxd5.} 10. cxd4 {[%emt 0:00:09]} Nd7 {[%emt 0:00:57]} (10... b6 $11 {remains equal.}) 11. Bf4 $16 {[%emt 0:06:39] [#]} Qa5 $146 {[%emt 0:02:54] White is better.} ({Predecessor:} 11... Nf6 12. Rc1 Bd7 13. Bc7 Qe8 14. Qb3 Bc6 15. Qb1 Rc8 16. Ba5 b6 17. Bd2 h6 {½-½ (57) Kalinitschew,S (2485)-Voigt,R (2325) Dresden 2002}) 12. Qe2 {[%emt 0:03:59]} Re8 {[%emt 0:11:07]} (12... Nb6 $142) 13. Rab1 {[%emt 0:02:43]} a6 {[%emt 0:07:39]} 14. Rfc1 {[%emt 0:01:58]} Ba3 {[%emt 0:06:35]} 15. Rc2 {[%emt 0:02:03]} (15. Rc4 $18) 15... Qh5 {[%emt 0:10:32]} (15... Be7 $16 16. e5 Rb8) 16. e5 {[%emt 0:04:54]} Nf8 {[%emt 0:05:16]} (16... f5 $142 17. Qd1 Nf8) 17. h3 $18 {[%emt 0:08:57]} Be7 {[%emt 0:06:30]} 18. Kh2 {[%emt 0:08:04]} Ng6 {[%emt 0:01:33]} 19. Bd2 {[%emt 0:00:44]} f5 {[%emt 0:06:32] Inhibits g4.} 20. a4 {[%emt 0:06:03][%cal Ba2a4,Ba4a5][%mdl 32] Inhibits b5.} Bd8 {[%emt 0:10:34]} 21. a5 {[%emt 0:05:54] White is more active.} h6 {[%emt 0:05:05]} 22. Ne1 {[%emt 0:03:52]} Qh4 {[%emt 0:04:57]} (22... Qxe2 $16 23. Bxe2 Re7) 23. Rc4 {[%emt 0:00:46]} (23. g4 $142) 23... Nf4 {[%emt 0:01:40]} 24. Qf3 {[%emt 0:01:49]} Nd5 {[%emt 0:04:39]} 25. Bc2 {[%emt 0:04:56]} Rf8 {[%emt 0:01:54]} 26. Nd3 {[%emt 0:01:38]} Bd7 $2 {[%emt 0:01:17]} (26... g5 27. g3 Qxh3+ 28. Kxh3 g4+ 29. Qxg4+ fxg4+ 30. Kxg4 Rf7) 27. Nc5 {[%emt 0:09:17]} (27. g3 $142 Qe7 28. Rxb7) 27... Bb5 {[%emt 0:01:25] [#]} (27... Bc8 $142 28. Bb3 (28. Nxb7 Bc7 $16) 28... Qe7) 28. Nxe6 $1 {[%emt 0:01:15][%cal Bc5e6,Be6f8,Bf8e6][%mdl 32]} Bxc4 {[%emt 0:00:07]} 29. Nxf8 {[%emt 0:00:10] Chess con chili.} Qxd4 {[%emt 0:00:33] [#]} 30. Qxf5 $40 {[%emt 0:01:23][%mdl 128] White goes for the king.} Qxd2 $4 {[%emt 0:00:31][%mdl 8192]} (30... Ne7 $16 31. Qd7 Qxe5+ 32. f4 Qd5) 31. Ne6 {[%emt 0:00:23][%csl Ge6][%cal Rf5f8]} Be7 {[%emt 0:00:57] Against Qf8+} 32. Qh7+ {[%emt 0:00:08]} Kf7 {[%emt 0:00:05]} 33. Qg6+ {[%emt 0:00:03] Weighted Error Value: White=0.35/Black=0.53} 1-0

[Event "15th Paleochora Open 2022"]
[Site "Paleochora"]
[Date "2022.07.19"]
[Round "4.16"]
[White "Kelires, Andreas"]
[Black "Markidis, Konstantinos"]
[Result "1/2-1/2"]
[ECO "E16"]
[WhiteElo "2528"]
[BlackElo "2259"]
[Annotator "TA"]
[PlyCount "93"]
[EventDate "2022.07.17"]
[EventType "swiss"]
[EventCountry "GRE"]
[SourceTitle "playchess.com"]
[Source "ChessBase"]
[SourceQuality "1"]
[TimeControl "40/5400+30:900+30"]

{[%evp 15,93,4,11,0,22,14,12,2,14,10,8,9,4,17,11,2,9,2,0,0,13,5,6,0,2,0,0,1,6,0,0,0,6,0,7,6,1,0,3,0,1,1,1,2,4,6,6,6,4,4,4,4,4,0,0,0,0,0,0,2,9,9,9,6,7,0,0,0,0,0,0,0,0,0,0,0,0,0,0,0]} 1. d4 {[%emt 0:03:03]} Nf6 {[%emt 0:00:31]} 2. c4 {[%emt 0:00:08]} e6 {[%emt 0:00:23]} 3. g3 {[%emt 0:00:04]} d5 {[%emt 0:01:53]} 4. Bg2 {[%emt 0:00:03]} Bb4+ {[%emt 0:00:22]} 5. Nd2 {[%emt 0:00:12]} O-O {[%emt 0:01:13]} 6. Ngf3 {[%emt 0:00:22]} b6 {[%emt 0:00:53]} 7. O-O {[%emt 0:00:04]} Bb7 {[%emt 0:00:07]} 8. Ne5 {[%emt 0:00:04]} Qc8 {[%emt 0:01:35] The position is equal. 8...a5 is the modern continuation.} 9. Qc2 {[%emt 0:00:27] E16: Queen's Indian: 4 g3 Bb7 5 Bg2 Bb4+.} Be7 {[%emt 0:00:56]} 10. b3 $1 {[%emt 0:01:11]} dxc4 {[%emt 0:01:51] [#]} 11. Bxb7 $146 {[%emt 0:00:51]} ({Predecessor:} 11. Ndxc4 Bxg2 12. Kxg2 c5 13. dxc5 b5 14. Nd2 Na6 15. Ne4 Nd5 16. Qd3 Nxc5 17. Nxc5 Bxc5 {½-½ (26) Enescu,C (2418)-Jean,P (2374) ICCF email 2020}) 11... Qxb7 {[%emt 0:00:08]} 12. Ndxc4 {[%emt 0:00:03]} c5 {[%emt 0:04:06]} 13. dxc5 {[%emt 0:00:40]} Bxc5 {[%emt 0:00:11]} 14. Bb2 {[%emt 0:00:10]} Rd8 {[%emt 0:08:45]} 15. Rad1 {[%emt 0:00:31]} Nc6 {[%emt 0:00:54]} 16. Rxd8+ {[%emt 0:08:21]} Rxd8 {[%emt 0:00:10]} 17. Rd1 {[%emt 0:00:07]} Be7 {[%emt 0:17:26]} 18. Rxd8+ {[%emt 0:03:22]} Nxd8 {[%emt 0:00:17]} 19. Qd3 {[%emt 0:03:22]} Qd5 {[%emt 0:03:41]} 20. Qxd5 {[%emt 0:00:29]} Nxd5 {[%emt 0:00:18]} 21. e4 {[%emt 0:00:16]} Nc7 {[%emt 0:00:37]} 22. Kf1 {[%emt 0:01:04]} f6 {[%emt 0:00:20]} 23. Nd3 {[%emt 0:00:03]} Nc6 {[%emt 0:04:48]} 24. Ke2 {[%emt 0:00:12]} b5 {[%emt 0:01:59]} 25. Ne3 {[%emt 0:01:27]} Na6 {[%emt 0:04:18]} 26. Nc2 {[%emt 0:06:24]} Nc5 {[%emt 0:06:33]} 27. f3 {[%emt 0:00:17]} Kf7 {[%emt 0:05:17]} 28. Ndb4 {[%emt 0:14:24]} Nxb4 {[%emt 0:09:33]} 29. Nxb4 {[%emt 0:00:02]} Nxb3 $11 {[%emt 0:03:17][%mdl 4096] Endgame KBN-KBN} 30. Nc6 {[%emt 0:00:05]} Nc5 {[%emt 0:00:18]} 31. Nxa7 {[%emt 0:03:38]} b4 {[%emt 0:04:10][%cal Bb5b4,Bb4b3][%mdl 32] Prevents Ba3.} 32. Nc6 {[%emt 0:00:25]} b3 $1 {[%emt 0:00:34]} 33. Nxe7 {[%emt 0:01:24]} Kxe7 {[%emt 0:00:19] KB-KN} 34. Ba3 {[%emt 0:00:48]} Ke8 {[%emt 0:01:21]} 35. axb3 {[%emt 0:00:45]} ({But not} 35. Bxc5 $2 b2 36. a4 b1=Q $19) 35... Nxb3 {[%emt 0:00:05]} 36. Kd3 {[%emt 0:00:59]} Na5 {[%emt 0:00:21]} 37. f4 {[%emt 0:00:23]} Nc6 {[%emt 0:03:12]} 38. Kc4 {[%emt 0:00:07]} Nd8 {[%emt 0:01:23]} 39. Kb5 {[%emt 0:01:05]} f5 {[%emt 0:00:59]} 40. exf5 {[%emt 0:00:00]} exf5 {[%emt 0:00:00]} 41. Kc5 {[%emt 0:01:24]} Kf7 {[%emt 0:01:40]} 42. Kd5 {[%emt 0:01:11]} Ne6 {[%emt 0:00:38]} 43. Bb4 {[%emt 0:01:21]} h5 {[%emt 0:01:15]} 44. Bd6 {[%emt 0:00:24]} g6 {[%emt 0:00:13]} 45. Ke5 {[%emt 0:01:09]} Nd8 {[%emt 0:00:34]} 46. Kd5 {[%emt 0:00:06]} Ne6 {[%emt 0:00:07]} 47. Ke5 {[%emt 0:00:03] A balanced but interesting game.  Weighted Error Value: White=0.03 (flawless) /Black=0.03 (flawless)} 1/2-1/2

[Event "15th Paleochora Open 2022"]
[Site "Paleochora"]
[Date "2022.07.19"]
[Round "4.17"]
[White "Zwardon, Vojtech"]
[Black "Sohier, Julien"]
[Result "1-0"]
[ECO "A20"]
[WhiteElo "2503"]
[BlackElo "2192"]
[Annotator "TA"]
[PlyCount "47"]
[EventDate "2022.07.17"]
[EventType "swiss"]
[EventCountry "GRE"]
[SourceTitle "playchess.com"]
[Source "ChessBase"]
[SourceQuality "1"]
[TimeControl "40/5400+30:900+30"]

{[%evp 10,47,2,-18,28,0,0,7,43,40,46,22,38,25,113,111,106,29,21,8,85,108,119,127,125,129,133,120,160,156,168,168,228,227,216,211,846,845,783,766]} 1. c4 {[%emt 0:03:33]} e5 {[%emt 0:00:07][%cal Be7e5,Be5e4][%mdl 32]} 2. g3 {[%emt 0:00:04]} c6 {[%emt 0:00:18]} 3. Nf3 {[%emt 0:00:01]} e4 {[%emt 0:00:35]} 4. Nd4 {[%emt 0:00:01]} d5 {[%emt 0:00:33]} 5. cxd5 {[%emt 0:00:02]} Qxd5 {[%emt 0:00:24]} 6. e3 {[%emt 0:00:05]} Nf6 {[%emt 0:01:23] A20: English Opening: 1...e5.} (6... Bc5 $142) 7. Nc3 $11 {[%emt 0:01:10]} Qe5 {[%emt 0:00:23]} 8. f4 {[%emt 0:00:30]} Qe7 {[%emt 0:00:30] The position is equal.} (8... exf3 $5 9. Nxf3 Qh5 $11) 9. b4 {[%emt 0:00:29] [#]} Qxb4 $146 {[%emt 0:15:31]} ({Predecessor:} 9... a5 10. b5 Bg4 11. Qc2 c5 12. Ba3 Qd8 13. Nde2 Bf3 14. Rg1 Nbd7 15. Bg2 Qb6 16. Nxe4 Bxg2 17. Rxg2 Qxb5 {1-0 (25) Oatlhotse,P (2244)-Bommini,M (2063) New Delhi 2019}) 10. Qc2 {[%emt 0:01:16]} Qe7 {[%emt 0:10:33]} 11. Bg2 {[%emt 0:01:18]} c5 {[%emt 0:09:02]} (11... g6 $11) 12. Nxe4 $16 {[%emt 0:01:29]} Na6 {[%emt 0:02:06]} 13. Nb5 {[%emt 0:07:15] White is much more active. The black rooks are badly placed.} (13. Ba3 $16) 13... Nxe4 $11 {[%emt 0:04:14]} 14. Bxe4 {[%emt 0:05:58]} Bd7 {[%emt 0:09:28] [#]} (14... Nb4 $11 15. Qb1 Bh3) 15. Rb1 $1 $16 {[%emt 0:16:56]} ({And not} 15. Bxb7 Nb4 16. Nd6+ Qxd6 $17) 15... Bc6 {[%emt 0:03:59]} 16. Bxc6+ {[%emt 0:03:20]} bxc6 {[%emt 0:00:02] [#]} 17. Nd4 {[%emt 0:04:12][%mdl 512]} Rc8 {[%emt 0:02:42]} 18. Ba3 {[%emt 0:04:49]} Nb4 {[%emt 0:06:20]} 19. Bxb4 {[%emt 0:00:08]} cxb4 {[%emt 0:00:03]} 20. O-O {[%emt 0:02:48]} Qd7 {[%emt 0:06:56] [#]} (20... Qb7 $142 21. Rfc1 c5) 21. Rfc1 $1 $18 {[%emt 0:00:43]} c5 {[%emt 0:03:05]} 22. Rxb4 $1 {[%emt 0:00:26] Threatens to win with Qe4+.} Rd8 $2 {[%emt 0:02:02]} (22... Be7 23. Qa4 a5) 23. Qe4+ {[%emt 0:00:13]} Qe7 {[%emt 0:05:53]} 24. Nc6 {[%emt 0:01:02] Weighted Error Value: White=0.11 (very precise) /Black=0.37} 1-0

[Event "15th Paleochora Open 2022"]
[Site "Paleochora"]
[Date "2022.07.19"]
[Round "4.18"]
[White "Aubry, Yannis"]
[Black "Leniart, Arkadiusz"]
[Result "1/2-1/2"]
[ECO "E21"]
[WhiteElo "2226"]
[BlackElo "2473"]
[Annotator "TA"]
[PlyCount "86"]
[EventDate "2022.07.17"]
[EventType "swiss"]
[EventCountry "GRE"]
[SourceTitle "playchess.com"]
[Source "ChessBase"]
[SourceQuality "1"]
[TimeControl "40/5400+30:900+30"]

{[%evp 11,86,16,20,19,43,46,47,-11,-23,-68,-70,-71,12,-49,-62,-86,-62,-132,-123,-236,-236,-226,-233,-235,-225,-221,-226,-225,-218,-230,-218,-202,-111,-122,-25,-29,-8,-5,0,-89,0,-18,-20,-17,-16,-16,-12,-11,-5,-16,-16,-25,0,0,0,0,0,0,0,0,0,0,0,0,0,0,0,0,0,0,0,0,0,0,0,0,0]} 1. d4 {[%emt 0:02:43]} Nf6 {[%emt 0:00:10]} 2. c4 {[%emt 0:00:07]} e6 {[%emt 0:00:04]} 3. Nc3 {[%emt 0:00:07]} Bb4 {[%emt 0:00:06]} 4. Nf3 {[%emt 0:00:40]} O-O {[%emt 0:00:18]} 5. Bg5 {[%emt 0:00:09]} h6 {[%emt 0:00:16]} 6. Bh4 {[%emt 0:00:06]} c5 {[%emt 0:03:56]} 7. Rc1 {[%emt 0:05:28] E21: Nimzo-Indian: 4 Nf3.} g5 {[%emt 0:08:37]} 8. Bg3 {[%emt 0:00:28]} Ne4 {[%emt 0:00:11] [#] Against Bd6} 9. Qd3 $146 {[%emt 0:18:06]} ({White should play} 9. e3 $14) ({Predecessor:} 9. e3 cxd4 10. Nxd4 Nc6 11. Bd3 Bxc3+ 12. bxc3 Nxg3 13. hxg3 Kg7 14. Qh5 Rh8 15. f4 d5 16. O-O dxc4 17. Nxc6 bxc6 18. fxg5 Qe7 19. Rf6 Bd7 20. Rcf1 {1-0 (20) Bacrot,E (2725)-Inkiov,V (2465) Haguenau 2013}) 9... f5 $11 {[%emt 0:07:41]} 10. a3 {[%emt 0:14:23]} Bxc3+ {[%emt 0:14:39]} 11. bxc3 {[%emt 0:00:11]} d5 {[%emt 0:06:38]} (11... cxd4 $17 12. Nd2 Nxd2 13. Kxd2 dxc3+ 14. Rxc3 b6) 12. Bxb8 {[%emt 0:21:20]} ({Better is} 12. Ne5 $11) 12... Rxb8 $15 {[%emt 0:03:04]} 13. Ne5 {[%emt 0:00:09]} cxd4 {[%emt 0:08:45]} 14. f3 {[%emt 0:05:57]} (14. Qxd4 $15 Qa5 15. f3 Qxa3 16. Nd3) 14... Nc5 $17 {[%emt 0:05:41]} ({Don't play} 14... Nxc3 $6 15. Qxd4 Na4 16. h4 $11) 15. Qxd4 {[%emt 0:04:34]} (15. Qc2 $17) 15... Nb3 $19 {[%emt 0:00:47][%csl LRc1,LRd4]} 16. Qxa7 {[%emt 0:00:36]} Qc7 {[%emt 0:06:09]} 17. Rb1 {[%emt 0:00:07]} Qxe5 {[%emt 0:00:33]} 18. Rxb3 {[%emt 0:00:07]} dxc4 {[%emt 0:00:06]} 19. Rb4 {[%emt 0:00:07]} Qxc3+ {[%emt 0:03:41]} 20. Kf2 {[%emt 0:00:06]} Bd7 {[%emt 0:02:13] Threatens to win with ...Ra8.} 21. e3 {[%emt 0:00:08] [#]} Bc6 {[%emt 0:04:05]} (21... Ra8 $1 $19 {[%cal Ra8a7]} 22. Qd4 Qxd4 23. exd4 b5) 22. Bxc4 $17 {[%emt 0:00:27]} Qc2+ {[%emt 0:01:41]} (22... Rfd8 $17 {And now ...Ra8 would win.} 23. Re1 (23. Bxe6+ $2 Kh8 $19) 23... Rd2+ 24. Be2 Rbd8) 23. Be2 $11 {[%emt 0:01:04]} Ra8 {[%emt 0:04:27]} 24. Qd4 {[%emt 0:00:06]} Rxa3 {[%emt 0:03:44]} 25. Rb2 {[%emt 0:00:06]} (25. Rc4 $1 $11 {keeps the balance.} Qb3 26. Ra1) 25... Qa4 {[%emt 0:01:47]} (25... Qc3 $17 26. Bc4 Kf7) 26. Qxa4 {[%emt 0:00:40]} Rxa4 {[%emt 0:00:25]} 27. Bb5 $1 {[%emt 0:00:14]} Bxb5 {[%emt 0:03:40]} 28. Rxb5 {[%emt 0:00:37][%mdl 4096] Endgame KRR-KRR} Ra2+ {[%emt 0:01:28]} 29. Kg3 {[%emt 0:00:07]} Rf7 {[%emt 0:00:38]} 30. Rhb1 {[%emt 0:02:06]} Re2 {[%emt 0:00:47]} 31. R1b3 {[%emt 0:04:32]} Rxe3 {[%emt 0:00:48]} 32. Rxe3 {[%emt 0:01:05] The position is equal.} f4+ {[%emt 0:00:04]} 33. Kf2 {[%emt 0:00:09]} fxe3+ {[%emt 0:00:04]} 34. Kxe3 {[%emt 0:00:06] KR-KR} Kg7 {[%emt 0:00:06]} 35. g4 {[%emt 0:14:26]} Rc7 {[%emt 0:01:17]} 36. Kf2 {[%emt 0:02:09]} Kf6 {[%emt 0:01:41]} 37. Kg3 {[%emt 0:00:07]} Rd7 {[%emt 0:03:02]} 38. h4 {[%emt 0:00:36]} gxh4+ {[%emt 0:00:38]} 39. Kxh4 {[%emt 0:00:19]} Rd3 {[%emt 0:00:47]} 40. Kg3 {[%emt 0:00:00]} Rd7 {[%emt 0:00:00]} 41. f4 {[%emt 0:04:04]} Rd3+ {[%emt 0:01:23]} 42. Kf2 {[%emt 0:00:16]} Rd7 {[%emt 0:00:52]} 43. Kg3 {[%emt 0:00:19]} Rd3+ {[%emt 0:02:48] And White is the lucky defender.  Weighted Error Value: White=0.23 (precise) /Black=0.20 (precise)} 1/2-1/2

[Event "15th Paleochora Open 2022"]
[Site "Paleochora"]
[Date "2022.07.20"]
[Round "5.1"]
[White "Stremavicius, Titas"]
[Black "Yilmaz, Mustafa"]
[Result "1/2-1/2"]
[ECO "A28"]
[WhiteElo "2532"]
[BlackElo "2634"]
[Annotator "TA"]
[PlyCount "57"]
[EventDate "2022.07.17"]
[EventType "swiss"]
[EventCountry "GRE"]
[SourceTitle "playchess.com"]
[Source "ChessBase"]
[SourceQuality "1"]
[TimeControl "40/5400+30:900+30"]

{[%evp 9,57,0,0,1,1,10,13,-6,0,-4,12,8,7,6,5,0,0,0,0,-10,-11,-12,-16,-26,-24,-46,-46,-69,-32,-49,-46,-33,-30,-27,-37,-45,-38,-96,-44,-56,-55,-49,-37,-45,0,-59,0,-47,0,-29]} 1. c4 e5 2. Nc3 Nf6 3. Nf3 Nc6 4. e4 Bb4 5. d3 d6 6. a3 {A28: English Opening: Four Knights Variation.} Bc5 7. b4 Bb6 8. Na4 Bd4 $1 {The main line 8...Bd4 scores better than 8...Bg4.} 9. Rb1 Bg4 10. Be2 Bxf3 11. Bxf3 Qe7 12. Bd2 a5 {[#]} 13. b5 $146 ({Predecessor:} 13. Nc3 axb4 14. axb4 O-O 15. O-O Ra3 16. Nb5 Ra2 17. Nc3 Bxc3 18. Bxc3 Rfa8 19. Re1 {0-1 (43) Rozum,I (2573)-Giri,A (2769) Moscow 2019}) 13... Nd8 {[%cal Bc6d8,Bd8e6,Be6d4][%mdl 32]} 14. Nc3 {[%cal Ba4c3,Bc3e2,Be2g3][%mdl 32]} Ne6 15. Ne2 Bc5 16. a4 h5 17. Ng3 g6 18. h4 Nd4 {[%cal Oc5b4]} 19. Ne2 Nd7 {[%cal Bf6d7,Bd7f8,Bf8e6,Be6d4][%mdl 32] Pair of Knights!} 20. Kf1 Nf8 21. Nxd4 Bxd4 22. g3 Ne6 23. Kg2 (23. Bg2 $15) 23... Bb6 (23... b6 $17) 24. Rb2 Kd7 25. Ra2 Nd4 26. Kh2 Ne6 27. Kg2 Nd4 28. Kh2 Ne6 29. Kg2 {Weighted Error Value: White=0.07 (flawless) /Black=0.11 (very precise)} 1/2-1/2

[Event "15th Paleochora Open 2022"]
[Site "Paleochora"]
[Date "2022.07.20"]
[Round "5.2"]
[White "Bernadskiy, Vitaliy"]
[Black "Hamitevici, Vladimir"]
[Result "0-1"]
[ECO "C78"]
[WhiteElo "2610"]
[BlackElo "2473"]
[Annotator "TA"]
[PlyCount "98"]
[EventDate "2022.07.17"]
[EventType "swiss"]
[EventCountry "GRE"]
[SourceTitle "playchess.com"]
[Source "ChessBase"]
[SourceQuality "1"]
[TimeControl "40/5400+30:900+30"]

{[%evp 24,98,45,37,52,48,49,52,58,49,62,62,73,58,61,53,70,46,59,38,66,52,62,75,91,90,73,43,29,0,0,0,0,0,160,112,322,309,310,274,262,142,216,155,166,156,146,105,99,103,111,0,0,0,111,0,0,-166,-166,-166,-166,-164,-164,-164,-164,-187,-188,-670,-656,-943,-867,-29984,-29985,-29987,-4686,-12846,-5031]} 1. e4 e5 2. Nf3 Nc6 3. Bb5 {[%cal Bf1b5,Bb5a4,Ba4b3][%mdl 32]} a6 4. Ba4 Nf6 5. O-O b5 6. Bb3 Bc5 7. c3 d6 8. d4 Bb6 9. Be3 O-O 10. Nbd2 Re8 11. h3 h6 12. Re1 Bb7 13. d5 {And now Bxb6 would win.} Nb8 {C78: Ruy Lopez: Archangelsk and Möller Defences.} 14. Bxb6 cxb6 15. Bc2 Nbd7 {White is slightly better.} 16. Nf1 {[#]} g6 $146 ({Predecessor:} 16... Rc8 17. Ne3 g6 18. Ng4 Nxg4 19. hxg4 Nf6 20. g5 hxg5 21. Nxg5 Kg7 22. Qd2 Rh8 {½-½ (35) Vuckovic,B (2160)-Nurkiewicz,M (2355) Tallinn 1997}) 17. Ng3 Nh7 18. Nd2 Rc8 19. Re3 Rc7 20. a3 Bc8 21. b4 h5 22. Ne2 Ndf8 23. a4 bxa4 24. Bxa4 b5 {[%cal Bb6b5,Bb5c4][%mdl 32]} 25. Bc2 {[%cal Oc3c4]} f5 26. exf5 gxf5 27. c4 bxc4 28. Rc3 {aiming for Ng3.} Rg7 ({Better is} 28... f4 $11) 29. Ng3 $1 $16 e4 $2 (29... Nf6 $16) 30. Nxh5 $18 Rg5 31. Raa3 (31. Nxc4 $6 Ng6 32. Rc1 Bb7 $18) 31... Ng6 32. Rxc4 ({Don't do} 32. Nxc4 f4 $16) (32. Rg3 $1 $18) 32... Kh8 (32... Bd7 $16) 33. Rcc3 Rg8 34. Rg3 Ne5 {Prevents Nc4.} 35. Rxg5 Qxg5 {[%csl Gg8][%cal Rg5g2]} 36. Rg3 Qh6 37. Nf1 (37. Rxg8+ $16 Kxg8 38. Bb3) 37... Rf8 $11 38. Rc3 Rg8 (38... Bd7 $11) 39. Rg3 (39. Nfg3 $16) 39... Rf8 40. Rg7 $2 {[#]} (40. Rc3 $11) 40... Nf6 $1 $19 41. Nfg3 f4 42. Nxf6 {Strongly threatening Rh7+.} Kxg7 43. Ngh5+ Kh8 44. Nxe4 Bd7 45. g3 $2 (45. Nhf6 Rxf6 46. Nxf6 Qxf6 47. Qh5+ Kg8 48. Qh7+ Kf8 49. Kh2) 45... fxg3 46. f4 {[#]} Bxh3 $1 {...Bg4 is the strong threat.} 47. Nxd6 (47. Nexg3 Bg4) 47... Qxd6 48. Nxg3 Bg4 (48... Qb6+ $142 49. Kh1 {[#]} Bg4 $1 50. Qd2 Nf3 51. Qc3+ Kg8 52. Bh7+ Kxh7 53. Qd3+ Kg8 54. Qg6+ Qxg6 55. Kg2 Qc2+ 56. Ne2 Qxe2+ 57. Kg3 Qh2+ 58. Kxg4 Rxf4#) 49. Qc1 {[#]} Rxf4 $3 {[%mdl 512] Weighted Error Value: White=0.89/Black=0.46} 0-1